[Event "Titled Tuesday Blitz July 20 2021"]
[White "Kobalia, Mikhail"]
[Black "Bortnyk, Olexandr"]
[WhiteFideId "4119150"]
[BlackFideId "14120828"]
[WhiteElo "2569"]
[BlackElo "2723"]
[Result "0-1"]
[Round "09"]
[TimeControl "180+1"]
[Date "2021.07.20"]
[WhiteClock "0:00:07"]
[BlackClock "0:00:31"]

1. e4 {[%clk 0:02:54]}  Nf6 {[%clk 0:03:00]} 2. e5 {[%clk 0:02:53]}  Nd5 {[%clk 0:03:01]} 3. d4 {[%clk 0:02:53]}  d6 {[%clk 0:03:01]} 4. c4 {[%clk 0:02:53]}  Nb6 {[%clk 0:03:02]} 5. f4 {[%clk 0:02:54]}  dxe5 {[%clk 0:03:02]} 6. fxe5 {[%clk 0:02:54]}  Bf5 {[%clk 0:03:03]} 7. Nc3 {[%clk 0:02:53]}  e6 {[%clk 0:03:04]} 8. Nf3 {[%clk 0:02:52]}  Bb4 {[%clk 0:03:04]} 9. Be2 {[%clk 0:02:51]}  c5 {[%clk 0:03:04]} 10. Be3 {[%clk 0:02:47]}  Nc6 {[%clk 0:02:51]} 11. dxc5 {[%clk 0:02:35]}  Qxd1+ {[%clk 0:02:52]} 12. Kxd1 {[%clk 0:02:09]}  Rd8+ {[%clk 0:01:54]} 13. Kc1 {[%clk 0:02:08]}  Nd7 {[%clk 0:01:53]} 14. Nb5 {[%clk 0:02:06]}  Bxc5 {[%clk 0:01:42]} 15. Nd6+ {[%clk 0:01:56]}  Ke7 {[%clk 0:01:40]} 16. Bg5+ {[%clk 0:01:53]}  f6 {[%clk 0:01:39]} 17. Nxf5+ {[%clk 0:01:52]}  exf5 {[%clk 0:01:39]} 18. exf6+ {[%clk 0:01:52]}  Nxf6 {[%clk 0:01:39]} 19. a3 {[%clk 0:01:46]}  h6 {[%clk 0:01:38]} 20. Bxf6+ {[%clk 0:01:39]}  Kxf6 {[%clk 0:01:39]} 21. b4 {[%clk 0:01:39]}  Be3+ {[%clk 0:01:31]} 22. Kc2 {[%clk 0:01:38]}  g5 {[%clk 0:01:32]} 23. h3 {[%clk 0:01:34]}  g4 {[%clk 0:01:30]} 24. hxg4 {[%clk 0:01:26]}  fxg4 {[%clk 0:01:30]} 25. Raf1 {[%clk 0:01:25]}  Ke6 {[%clk 0:01:00]} 26. Re1 {[%clk 0:01:20]}  Bf2 {[%clk 0:00:47]} 27. Bd3+ {[%clk 0:01:17]}  Bxe1 {[%clk 0:00:47]} 28. Rxe1+ {[%clk 0:01:18]}  Kf6 {[%clk 0:00:46]} 29. Nh4 {[%clk 0:01:12]}  Kg5 {[%clk 0:00:42]} 30. g3 {[%clk 0:01:11]}  Rhe8 {[%clk 0:00:38]} 31. Rf1 {[%clk 0:00:49]}  Nd4+ {[%clk 0:00:38]} 32. Kb2 {[%clk 0:00:31]}  Re3 {[%clk 0:00:32]} 33. Bb1 {[%clk 0:00:08]}  Rb3+ {[%clk 0:00:30]} 34. Ka2 {[%clk 0:00:07]}  Rxg3 {[%clk 0:00:31]} 0-1


[Site "https://www.chess.com"]

[Event "Titled Tuesday Blitz July 20 2021"]
[White "Krallis, Christos"]
[Black "Guimaraes, Wagner Peixoto"]
[WhiteFideId "4298896"]
[BlackFideId "2100940"]
[WhiteElo "2193"]
[BlackElo "2245"]
[Result "1-0"]
[Round "09"]
[TimeControl "180+1"]
[Date "2021.07.21"]
[WhiteClock "0:00:33"]
[BlackClock "0:00:03"]

1. d4 {[%clk 0:03:00]}  Nf6 {[%clk 0:02:54]} 2. c4 {[%clk 0:03:00]}  g6 {[%clk 0:02:51]} 3. Nf3 {[%clk 0:02:58]}  Bg7 {[%clk 0:02:46]} 4. g3 {[%clk 0:02:59]}  O-O {[%clk 0:02:45]} 5. Bg2 {[%clk 0:02:59]}  d6 {[%clk 0:02:39]} 6. O-O {[%clk 0:03:00]}  Nbd7 {[%clk 0:02:33]} 7. b3 {[%clk 0:02:59]}  c5 {[%clk 0:02:32]} 8. Bb2 {[%clk 0:02:57]}  a6 {[%clk 0:02:25]} 9. Nc3 {[%clk 0:02:56]}  Rb8 {[%clk 0:02:02]} 10. a4 {[%clk 0:02:46]}  b6 {[%clk 0:01:55]} 11. Qc2 {[%clk 0:02:27]}  Bb7 {[%clk 0:01:47]} 12. d5 {[%clk 0:02:25]}  Ng4 {[%clk 0:01:42]} 13. Nd1 {[%clk 0:02:22]}  Bxb2 {[%clk 0:01:31]} 14. Nxb2 {[%clk 0:02:21]}  b5 {[%clk 0:01:24]} 15. axb5 {[%clk 0:02:18]}  axb5 {[%clk 0:01:25]} 16. Nd3 {[%clk 0:02:15]}  bxc4 {[%clk 0:01:23]} 17. bxc4 {[%clk 0:02:15]}  Ngf6 {[%clk 0:01:10]} 18. Nf4 {[%clk 0:02:10]}  Ng4 {[%clk 0:01:02]} 19. Bh3 {[%clk 0:02:04]}  Nge5 {[%clk 0:01:01]} 20. Ng5 {[%clk 0:01:43]}  Nf6 {[%clk 0:00:49]} 21. Rfb1 {[%clk 0:01:33]}  Ra8 {[%clk 0:00:29]} 22. Rxa8 {[%clk 0:01:16]}  Qxa8 {[%clk 0:00:25]} 23. Qb2 {[%clk 0:01:01]}  Bc8 {[%clk 0:00:23]} 24. Bxc8 {[%clk 0:00:54]}  Rxc8 {[%clk 0:00:19]} 25. Ra1 {[%clk 0:00:48]}  Qb8 {[%clk 0:00:18]} 26. Qc2 {[%clk 0:00:47]}  Qb4 {[%clk 0:00:16]} 27. Rc1 {[%clk 0:00:47]}  h6 {[%clk 0:00:16]} 28. Nf3 {[%clk 0:00:45]}  Nxf3+ {[%clk 0:00:16]} 29. exf3 {[%clk 0:00:46]}  Rb8 {[%clk 0:00:15]} 30. Qe2 {[%clk 0:00:45]}  Kf8 {[%clk 0:00:15]} 31. Re1 {[%clk 0:00:45]}  Rb7 {[%clk 0:00:14]} 32. h4 {[%clk 0:00:44]}  Qb2 {[%clk 0:00:14]} 33. Qe3 {[%clk 0:00:43]}  Qb3 {[%clk 0:00:13]} 34. Nd3 {[%clk 0:00:40]}  Qxc4 {[%clk 0:00:12]} 35. Qxh6+ {[%clk 0:00:41]}  Kg8 {[%clk 0:00:11]} 36. Nf4 {[%clk 0:00:41]}  Nxd5 {[%clk 0:00:08]} 37. Nxg6 {[%clk 0:00:42]}  fxg6 {[%clk 0:00:08]} 38. Qxg6+ {[%clk 0:00:42]}  Kf8 {[%clk 0:00:08]} 39. Qf5+ {[%clk 0:00:43]}  Kg7 {[%clk 0:00:07]} 40. Re6 {[%clk 0:00:41]}  Nf6 {[%clk 0:00:06]} 41. h5 {[%clk 0:00:38]}  Qc1+ {[%clk 0:00:05]} 42. Kg2 {[%clk 0:00:38]}  Qh6 {[%clk 0:00:06]} 43. g4 {[%clk 0:00:38]}  Qh7 {[%clk 0:00:04]} 44. Qf4 {[%clk 0:00:38]}  Kf7 {[%clk 0:00:03]} 45. Re1 {[%clk 0:00:37]}  Kg7 {[%clk 0:00:02]} 46. Qg5+ {[%clk 0:00:36]}  Kf7 {[%clk 0:00:02]} 47. Qf4 {[%clk 0:00:35]}  Kg7 {[%clk 0:00:02]} 48. Kg3 {[%clk 0:00:33]}  Rb4 {[%clk 0:00:03]} 49. Rxe7+ {[%clk 0:00:33]}  Kf8 {[%clk 0:00:03]} 50. Qxf6+ {[%clk 0:00:33]} 1-0


[Site "https://www.chess.com"]

[Event "Titled Tuesday Blitz July 20 2021"]
[White "Kretov, Evgenij"]
[Black "Jovic, Stanoje"]
[WhiteFideId "4167821"]
[BlackFideId "905020"]
[WhiteElo "2400"]
[BlackElo "2286"]
[Result "1/2-1/2"]
[Round "09"]
[TimeControl "180+1"]
[Date "2021.07.21"]
[WhiteClock "0:00:18"]
[BlackClock "0:00:13"]

1. d4 {[%clk 0:02:59]}  Nf6 {[%clk 0:02:59]} 2. c4 {[%clk 0:02:59]}  e6 {[%clk 0:02:59]} 3. Nc3 {[%clk 0:03:00]}  Bb4 {[%clk 0:02:58]} 4. Bg5 {[%clk 0:03:00]}  h6 {[%clk 0:02:56]} 5. Bh4 {[%clk 0:03:00]}  b6 {[%clk 0:02:56]} 6. e3 {[%clk 0:02:59]}  Bb7 {[%clk 0:02:52]} 7. Nf3 {[%clk 0:02:59]}  g5 {[%clk 0:02:50]} 8. Bg3 {[%clk 0:02:59]}  Ne4 {[%clk 0:02:50]} 9. Qc2 {[%clk 0:02:59]}  d6 {[%clk 0:02:45]} 10. Bd3 {[%clk 0:02:53]}  Bxc3+ {[%clk 0:02:39]} 11. bxc3 {[%clk 0:02:52]}  f5 {[%clk 0:02:39]} 12. d5 {[%clk 0:02:50]}  Nd7 {[%clk 0:02:39]} 13. dxe6 {[%clk 0:02:44]}  Ndc5 {[%clk 0:02:35]} 14. Nd4 {[%clk 0:02:43]}  Qf6 {[%clk 0:02:22]} 15. f3 {[%clk 0:02:42]}  Nxg3 {[%clk 0:02:12]} 16. hxg3 {[%clk 0:02:43]}  Nxd3+ {[%clk 0:02:02]} 17. Qxd3 {[%clk 0:02:42]}  O-O {[%clk 0:01:59]} 18. Kf2 {[%clk 0:02:18]}  Rae8 {[%clk 0:01:55]} 19. Rh5 {[%clk 0:02:05]}  c5 {[%clk 0:01:47]} 20. Nb5 {[%clk 0:02:05]}  Rxe6 {[%clk 0:01:47]} 21. Rah1 {[%clk 0:02:02]}  Qg7 {[%clk 0:01:20]} 22. a4 {[%clk 0:01:18]}  a6 {[%clk 0:01:15]} 23. Na3 {[%clk 0:01:16]}  Bc6 {[%clk 0:01:11]} 24. Rb1 {[%clk 0:01:15]}  Qc7 {[%clk 0:01:04]} 25. a5 {[%clk 0:01:08]}  bxa5 {[%clk 0:01:03]} 26. Rbh1 {[%clk 0:00:59]}  Kg7 {[%clk 0:01:00]} 27. f4 {[%clk 0:00:52]}  Be4 {[%clk 0:00:56]} 28. Qd1 {[%clk 0:00:47]}  g4 {[%clk 0:00:54]} 29. Qd2 {[%clk 0:00:32]}  Rb8 {[%clk 0:00:53]} 30. Ra1 {[%clk 0:00:32]}  Qc6 {[%clk 0:00:46]} 31. Kg1 {[%clk 0:00:31]}  Re7 {[%clk 0:00:42]} 32. Rh1 {[%clk 0:00:29]}  Reb7 {[%clk 0:00:41]} 33. Ra2 {[%clk 0:00:29]}  Rb3 {[%clk 0:00:30]} 34. Kh2 {[%clk 0:00:29]}  h5 {[%clk 0:00:29]} 35. Rha1 {[%clk 0:00:27]}  Rh8 {[%clk 0:00:26]} 36. Nc2 {[%clk 0:00:26]}  h4 {[%clk 0:00:25]} 37. gxh4 {[%clk 0:00:22]}  Rxh4+ {[%clk 0:00:24]} 38. Kg3 {[%clk 0:00:22]}  Rh6 {[%clk 0:00:20]} 39. Rxa5 {[%clk 0:00:20]}  Rb6 {[%clk 0:00:20]} 40. Ne1 {[%clk 0:00:19]}  Qc7 {[%clk 0:00:19]} 41. Rxa6 {[%clk 0:00:18]}  Rxa6 {[%clk 0:00:18]} 42. Rxa6 {[%clk 0:00:18]}  Qd8 {[%clk 0:00:18]} 43. Kf2 {[%clk 0:00:18]}  g3+ {[%clk 0:00:17]} 44. Ke2 {[%clk 0:00:18]}  Qg8 {[%clk 0:00:14]} 45. Rxd6 {[%clk 0:00:18]}  Qxc4+ {[%clk 0:00:14]} 46. Kd1 {[%clk 0:00:18]}  Rxd6 {[%clk 0:00:13]} 47. Qxd6 {[%clk 0:00:17]}  Qf1 {[%clk 0:00:12]} 48. Qe7+ {[%clk 0:00:17]}  Kg6 {[%clk 0:00:12]} 49. Qe6+ {[%clk 0:00:17]}  Kg7 {[%clk 0:00:12]} 50. Qe7+ {[%clk 0:00:17]}  Kg6 {[%clk 0:00:12]} 51. Qe6+ {[%clk 0:00:18]}  Kg7 {[%clk 0:00:13]} 52. Qe7+ {[%clk 0:00:18]} 1/2-1/2


[Site "https://www.chess.com"]

[Event "Titled Tuesday Blitz July 20 2021"]
[White "Kubatko, Ivan"]
[Black "Khalafova, Narmin"]
[WhiteFideId "24111473"]
[BlackFideId "13402625"]
[WhiteElo "2285"]
[BlackElo "2109"]
[Result "0-1"]
[Round "09"]
[TimeControl "180+1"]
[Date "2021.07.21"]
[WhiteClock "0:00:01"]
[BlackClock "0:00:07"]

1. e4 {[%clk 0:02:59]}  c5 {[%clk 0:02:59]} 2. Nc3 {[%clk 0:02:54]}  d6 {[%clk 0:02:59]} 3. f4 {[%clk 0:02:54]}  g6 {[%clk 0:02:59]} 4. d4 {[%clk 0:02:54]}  Nd7 {[%clk 0:02:54]} 5. dxc5 {[%clk 0:02:41]}  Nxc5 {[%clk 0:02:48]} 6. Qd4 {[%clk 0:02:36]}  Nf6 {[%clk 0:02:47]} 7. e5 {[%clk 0:02:35]}  Ne6 {[%clk 0:02:45]} 8. Bb5+ {[%clk 0:02:15]}  Nd7 {[%clk 0:02:39]} 9. Qa4 {[%clk 0:01:20]}  Bg7 {[%clk 0:02:36]} 10. exd6 {[%clk 0:01:08]}  O-O {[%clk 0:02:26]} 11. Nf3 {[%clk 0:01:03]}  exd6 {[%clk 0:02:07]} 12. Be3 {[%clk 0:01:00]}  a6 {[%clk 0:01:53]} 13. O-O {[%clk 0:00:49]}  Ndc5 {[%clk 0:01:25]} 14. Qa3 {[%clk 0:00:48]}  b6 {[%clk 0:01:02]} 15. Bc6 {[%clk 0:00:45]}  Rb8 {[%clk 0:01:02]} 16. Rad1 {[%clk 0:00:43]}  b5 {[%clk 0:00:57]} 17. Nd5 {[%clk 0:00:32]}  a5 {[%clk 0:00:41]} 18. c3 {[%clk 0:00:25]}  b4 {[%clk 0:00:24]} 19. cxb4 {[%clk 0:00:25]}  axb4 {[%clk 0:00:24]} 20. Nxb4 {[%clk 0:00:25]}  Qb6 {[%clk 0:00:25]} 21. Nd5 {[%clk 0:00:22]}  Qxb2 {[%clk 0:00:20]} 22. Qxb2 {[%clk 0:00:20]}  Rxb2 {[%clk 0:00:21]} 23. Ne7+ {[%clk 0:00:19]}  Kh8 {[%clk 0:00:22]} 24. a4 {[%clk 0:00:14]}  Ba6 {[%clk 0:00:21]} 25. Rfe1 {[%clk 0:00:13]}  Nd3 {[%clk 0:00:20]} 26. Rf1 {[%clk 0:00:10]}  Ndxf4 {[%clk 0:00:14]} 27. Rf2 {[%clk 0:00:09]}  Ne2+ {[%clk 0:00:13]} 28. Kh1 {[%clk 0:00:08]}  Rb3 {[%clk 0:00:12]} 29. Bd2 {[%clk 0:00:03]}  h5 {[%clk 0:00:11]} 30. Re1 {[%clk 0:00:03]}  N2d4 {[%clk 0:00:10]} 31. Bd5 {[%clk 0:00:02]}  Nxf3 {[%clk 0:00:09]} 32. Bxb3 {[%clk 0:00:01]}  Nxe1 {[%clk 0:00:08]} 33. Bxe1 {[%clk 0:00:02]}  Nd4 {[%clk 0:00:08]} 34. Bd5 {[%clk 0:00:02]}  Kh7 {[%clk 0:00:08]} 35. g3 {[%clk 0:00:01]}  Be5 {[%clk 0:00:07]} 0-1


[Site "https://www.chess.com"]

[Event "Titled Tuesday Blitz July 20 2021"]
[White "Kukhmazov, Arsen"]
[Black "Bartel, Michal"]
[WhiteFideId "24108260"]
[BlackFideId "1119257"]
[WhiteElo "2453"]
[BlackElo "2271"]
[Result "1-0"]
[Round "09"]
[TimeControl "180+1"]
[Date "2021.07.20"]
[WhiteClock "0:00:07"]
[BlackClock "0:01:35"]

1. d4 {[%clk 0:03:00]}  Nf6 {[%clk 0:02:59]} 2. c4 {[%clk 0:03:01]}  c5 {[%clk 0:03:00]} 3. d5 {[%clk 0:03:00]}  e6 {[%clk 0:03:00]} 4. Nc3 {[%clk 0:03:00]}  exd5 {[%clk 0:03:01]} 5. cxd5 {[%clk 0:03:01]}  d6 {[%clk 0:03:01]} 6. Nf3 {[%clk 0:03:02]}  g6 {[%clk 0:03:02]} 7. Bf4 {[%clk 0:03:03]}  a6 {[%clk 0:03:01]} 8. e4 {[%clk 0:03:03]}  Nh5 {[%clk 0:02:59]} 9. Bg5 {[%clk 0:03:03]}  Be7 {[%clk 0:02:59]} 10. Bh6 {[%clk 0:03:04]}  Bf8 {[%clk 0:02:58]} 11. Qd2 {[%clk 0:03:04]}  Bg4 {[%clk 0:02:55]} 12. Be2 {[%clk 0:03:01]}  Bxf3 {[%clk 0:02:54]} 13. Bxf3 {[%clk 0:03:02]}  Nf6 {[%clk 0:02:55]} 14. O-O {[%clk 0:02:54]}  Nbd7 {[%clk 0:02:55]} 15. Rae1 {[%clk 0:02:40]}  Bxh6 {[%clk 0:02:52]} 16. Qxh6 {[%clk 0:02:41]}  Qe7 {[%clk 0:02:53]} 17. Bd1 {[%clk 0:02:05]}  Ne5 {[%clk 0:02:25]} 18. f4 {[%clk 0:01:58]}  Nd3 {[%clk 0:02:26]} 19. Re3 {[%clk 0:01:58]}  Nxb2 {[%clk 0:02:24]} 20. Be2 {[%clk 0:01:30]}  b5 {[%clk 0:02:15]} 21. e5 {[%clk 0:01:30]}  Nd7 {[%clk 0:02:08]} 22. Rb1 {[%clk 0:00:35]}  Na4 {[%clk 0:01:52]} 23. Nxa4 {[%clk 0:00:35]}  bxa4 {[%clk 0:01:52]} 24. Rb7 {[%clk 0:00:13]}  dxe5 {[%clk 0:01:41]} 25. Rxe5 {[%clk 0:00:10]}  Qxe5 {[%clk 0:01:35]} 26. fxe5 {[%clk 0:00:10]}  Nxe5 {[%clk 0:01:35]} 27. Qg7 {[%clk 0:00:10]}  O-O-O {[%clk 0:01:36]} 28. Bxa6 {[%clk 0:00:09]}  Rhe8 {[%clk 0:01:34]} 29. Re7+ {[%clk 0:00:06]}  Kb8 {[%clk 0:01:35]} 30. Qxe5+ {[%clk 0:00:07]} 1-0


[Site "https://www.chess.com"]

[Event "Titled Tuesday Blitz July 20 2021"]
[White "LEGENYA1998"]
[Black "Wagner, Dinara"]
[BlackFideId "24157570"]
[WhiteElo "2414"]
[BlackElo "2260"]
[Result "0-1"]
[Round "09"]
[TimeControl "180+1"]
[Date "2021.07.21"]
[WhiteClock "0:00:27"]
[BlackClock "0:01:31"]

1. d4 {[%clk 0:02:59]}  Nf6 {[%clk 0:02:59]} 2. Nf3 {[%clk 0:02:56]}  d5 {[%clk 0:02:58]} 3. Bf4 {[%clk 0:02:51]}  c5 {[%clk 0:02:57]} 4. dxc5 {[%clk 0:02:47]}  e6 {[%clk 0:02:51]} 5. e3 {[%clk 0:02:44]}  Bxc5 {[%clk 0:02:50]} 6. Be2 {[%clk 0:02:40]}  Nc6 {[%clk 0:02:50]} 7. O-O {[%clk 0:02:39]}  O-O {[%clk 0:02:50]} 8. h3 {[%clk 0:02:39]}  Qe7 {[%clk 0:02:45]} 9. Bg5 {[%clk 0:02:30]}  h6 {[%clk 0:02:45]} 10. Bxf6 {[%clk 0:02:30]}  Qxf6 {[%clk 0:02:45]} 11. c3 {[%clk 0:02:31]}  b6 {[%clk 0:02:39]} 12. Nbd2 {[%clk 0:02:27]}  Bb7 {[%clk 0:02:38]} 13. e4 {[%clk 0:02:17]}  Rad8 {[%clk 0:02:31]} 14. Qc2 {[%clk 0:02:14]}  d4 {[%clk 0:02:28]} 15. e5 {[%clk 0:01:07]}  Nxe5 {[%clk 0:02:22]} 16. Ne4 {[%clk 0:01:06]}  Nxf3+ {[%clk 0:02:21]} 17. Bxf3 {[%clk 0:01:05]}  Qe7 {[%clk 0:02:20]} 18. cxd4 {[%clk 0:01:03]}  Bxd4 {[%clk 0:02:15]} 19. Rad1 {[%clk 0:01:03]}  Be5 {[%clk 0:02:11]} 20. Rxd8 {[%clk 0:00:56]}  Rxd8 {[%clk 0:02:12]} 21. Rd1 {[%clk 0:00:57]}  Rc8 {[%clk 0:02:11]} 22. Qa4 {[%clk 0:00:56]}  Bc6 {[%clk 0:02:08]} 23. Qa6 {[%clk 0:00:54]}  Rf8 {[%clk 0:01:57]} 24. Nf6+ {[%clk 0:00:40]}  Qxf6 {[%clk 0:01:57]} 25. Bxc6 {[%clk 0:00:41]}  Bxb2 {[%clk 0:01:56]} 26. Qxa7 {[%clk 0:00:41]}  Bd4 {[%clk 0:01:56]} 27. Rd2 {[%clk 0:00:40]}  Rd8 {[%clk 0:01:53]} 28. Qa4 {[%clk 0:00:34]}  Qf4 {[%clk 0:01:34]} 29. Qd1 {[%clk 0:00:32]}  Bxf2+ {[%clk 0:01:31]} 30. Rxf2 {[%clk 0:00:27]}  Rxd1+ {[%clk 0:01:31]} 0-1


[Site "https://www.chess.com"]

[Event "Titled Tuesday Blitz July 20 2021"]
[White "Le, Tuan Minh"]
[Black "Onyshchuk, Volodymyr"]
[WhiteFideId "12401153"]
[BlackFideId "14114038"]
[WhiteElo "2450"]
[BlackElo "2603"]
[Result "1-0"]
[Round "09"]
[TimeControl "180+1"]
[Date "2021.07.20"]
[WhiteClock "0:00:58"]
[BlackClock "0:00:16"]

1. d4 {[%clk 0:02:44]}  d6 {[%clk 0:02:59]} 2. e4 {[%clk 0:02:42]}  Nf6 {[%clk 0:02:59]} 3. Nc3 {[%clk 0:02:41]}  g6 {[%clk 0:03:00]} 4. Nf3 {[%clk 0:02:35]}  Bg7 {[%clk 0:03:00]} 5. Bc4 {[%clk 0:02:36]}  O-O {[%clk 0:02:58]} 6. O-O {[%clk 0:02:36]}  c6 {[%clk 0:02:56]} 7. a4 {[%clk 0:02:33]}  d5 {[%clk 0:02:53]} 8. Bd3 {[%clk 0:02:34]}  dxe4 {[%clk 0:02:51]} 9. Nxe4 {[%clk 0:02:34]}  Nxe4 {[%clk 0:02:51]} 10. Bxe4 {[%clk 0:02:35]}  Nd7 {[%clk 0:02:51]} 11. c3 {[%clk 0:02:35]}  Nf6 {[%clk 0:02:51]} 12. Bc2 {[%clk 0:02:35]}  Be6 {[%clk 0:02:48]} 13. Re1 {[%clk 0:02:36]}  Bd5 {[%clk 0:02:38]} 14. h3 {[%clk 0:02:34]}  Ne8 {[%clk 0:02:35]} 15. Ne5 {[%clk 0:02:27]}  Nd6 {[%clk 0:02:34]} 16. Bf4 {[%clk 0:02:25]}  f6 {[%clk 0:02:13]} 17. Nd3 {[%clk 0:02:23]}  Re8 {[%clk 0:02:03]} 18. Nc5 {[%clk 0:02:20]}  Qc8 {[%clk 0:02:03]} 19. Bb3 {[%clk 0:02:16]}  Nc4 {[%clk 0:01:36]} 20. Qe2 {[%clk 0:02:08]}  b6 {[%clk 0:01:33]} 21. Ne6 {[%clk 0:02:04]}  Nd6 {[%clk 0:01:21]} 22. Bxd5 {[%clk 0:01:30]}  cxd5 {[%clk 0:01:20]} 23. Bxd6 {[%clk 0:01:18]}  exd6 {[%clk 0:01:20]} 24. Qb5 {[%clk 0:01:16]}  Qb7 {[%clk 0:01:07]} 25. Nc7 {[%clk 0:01:11]}  Rxe1+ {[%clk 0:00:31]} 26. Rxe1 {[%clk 0:01:12]}  a6 {[%clk 0:00:22]} 27. Qd7 {[%clk 0:00:58]}  Rf8 {[%clk 0:00:16]} 28. Re7 {[%clk 0:00:58]} 1-0


[Site "https://www.chess.com"]

[Event "Titled Tuesday Blitz July 20 2021"]
[White "Ljukin, Sergei"]
[Black "Przybylski, Wojciech"]
[WhiteFideId "14102200"]
[BlackFideId "1117599"]
[WhiteElo "2309"]
[BlackElo "2317"]
[Result "0-1"]
[Round "09"]
[TimeControl "180+1"]
[Date "2021.07.21"]
[WhiteClock "0:00:01"]
[BlackClock "0:00:04"]

1. e4 {[%clk 0:03:00]}  c5 {[%clk 0:02:54]} 2. Nf3 {[%clk 0:02:59]}  d6 {[%clk 0:02:54]} 3. d4 {[%clk 0:03:00]}  cxd4 {[%clk 0:02:54]} 4. Nxd4 {[%clk 0:03:01]}  Nf6 {[%clk 0:02:55]} 5. Nc3 {[%clk 0:03:01]}  a6 {[%clk 0:02:55]} 6. Bg5 {[%clk 0:03:01]}  e6 {[%clk 0:02:54]} 7. f4 {[%clk 0:03:01]}  h6 {[%clk 0:02:54]} 8. Bh4 {[%clk 0:03:00]}  Qb6 {[%clk 0:02:55]} 9. a3 {[%clk 0:02:59]}  Be7 {[%clk 0:02:55]} 10. Bf2 {[%clk 0:02:59]}  Qc7 {[%clk 0:02:54]} 11. Qe2 {[%clk 0:02:59]}  Nc6 {[%clk 0:02:54]} 12. O-O-O {[%clk 0:02:56]}  e5 {[%clk 0:02:46]} 13. fxe5 {[%clk 0:02:29]}  dxe5 {[%clk 0:02:34]} 14. Nf3 {[%clk 0:02:29]}  O-O {[%clk 0:02:23]} 15. Nd5 {[%clk 0:02:28]}  Qd6 {[%clk 0:01:58]} 16. Nb6 {[%clk 0:02:15]}  Qe6 {[%clk 0:01:57]} 17. Nxa8 {[%clk 0:02:00]}  Qa2 {[%clk 0:01:57]} 18. c4 {[%clk 0:01:47]}  Na5 {[%clk 0:01:37]} 19. Nb6 {[%clk 0:01:39]}  Nb3+ {[%clk 0:01:30]} 20. Kc2 {[%clk 0:01:38]}  Bxa3 {[%clk 0:01:29]} 21. Rb1 {[%clk 0:01:07]}  Bg4 {[%clk 0:01:14]} 22. Qd3 {[%clk 0:00:56]}  Na1+ {[%clk 0:00:59]} 23. Kd1 {[%clk 0:00:46]}  Bb4 {[%clk 0:00:55]} 24. Be2 {[%clk 0:00:35]}  Nh5 {[%clk 0:00:38]} 25. g3 {[%clk 0:00:29]}  Be7 {[%clk 0:00:34]} 26. Nd5 {[%clk 0:00:25]}  Bd6 {[%clk 0:00:26]} 27. Rf1 {[%clk 0:00:23]}  Rd8 {[%clk 0:00:24]} 28. Rxa1 {[%clk 0:00:20]}  Qxa1+ {[%clk 0:00:23]} 29. Kc2 {[%clk 0:00:20]}  Qa4+ {[%clk 0:00:21]} 30. Qb3 {[%clk 0:00:20]}  Qc6 {[%clk 0:00:20]} 31. Rd1 {[%clk 0:00:17]}  f5 {[%clk 0:00:17]} 32. Bd3 {[%clk 0:00:13]}  fxe4 {[%clk 0:00:16]} 33. Bxe4 {[%clk 0:00:13]}  Kh8 {[%clk 0:00:16]} 34. Nf6 {[%clk 0:00:11]}  Qc8 {[%clk 0:00:15]} 35. Nxh5 {[%clk 0:00:09]}  Bxh5 {[%clk 0:00:15]} 36. Rd5 {[%clk 0:00:08]}  Bf7 {[%clk 0:00:10]} 37. Qd3 {[%clk 0:00:05]}  Bxd5 {[%clk 0:00:08]} 38. Bxd5 {[%clk 0:00:05]}  Be7 {[%clk 0:00:08]} 39. Nxe5 {[%clk 0:00:05]}  Rxd5 {[%clk 0:00:04]} 40. Qxd5 {[%clk 0:00:03]}  Qf5+ {[%clk 0:00:04]} 41. Kb3 {[%clk 0:00:03]}  Qxf2 {[%clk 0:00:03]} 42. Ng6+ {[%clk 0:00:02]}  Kh7 {[%clk 0:00:04]} 43. Nxe7 {[%clk 0:00:02]}  Qe3+ {[%clk 0:00:04]} 44. Ka2 {[%clk 0:00:02]}  Qxe7 {[%clk 0:00:05]} 45. c5 {[%clk 0:00:02]}  Qc7 {[%clk 0:00:04]} 46. Qd6 {[%clk 0:00:01]}  Qa5+ {[%clk 0:00:04]} 47. Kb3 {[%clk 0:00:01]}  Qb5+ {[%clk 0:00:04]} 48. Kc3 {[%clk 0:00:01]}  a5 {[%clk 0:00:04]} 0-1


[Site "https://www.chess.com"]